{"text_format":"1","workbook":"xlsx","n_sheets":1,"sheets":["Tolerance"],"not_rendered":{"charts":0,"images":5,"macros":1,"external_links":0,"defined_names":3,"comments":0,"pivot_tables":0},"unopened":[],"bounds":{"document_bytes":16777216,"sheet_cells":100000,"rows_first":2000,"rows_last":500,"rows_between":2000,"halvings":0,"cell_chars":16384,"cell_head_chars":4096},"cells_cut":0,"cells_raw":0,"read":"whole","date_system":"1900"}

{"sheet":"Tolerance","index":0,"n_rows":33,"n_cols":42,"rows_kept":33,"cut":false,"hidden":false,"merged":[[20,5,20,7],[20,14,20,16],[8,5,8,7],[8,14,8,16],[1,1,3,32]]}
[]
[null,"N5 Lifeskills - Tolerance                                                                                                                                                                                                   Created by Mr.Lafferty@mathsrevision.com    "]
[]
[]
[null,null,null,null,null,null,null,null,null,null,null,null,null,null,null,null,null,null,null,null,null,null,null,null,null,null,null,null,null,null,null,null,null,null,null,null,null,{"$f":"ROUND(RAND()*(20-2)+2,0)*10","v":70},"±"]
[null,{"$f":"\"Q1.   Alessio the joiner needs to buy nails of length \"&AL9&\"mm.\"","v":"Q1.   Alessio the joiner needs to buy nails of length (70 ± 3)mm."},null,null,null,null,null,null,null,null,null,null,null,null,null,null,null,null,null,null,null,null,null,null,null,null,null,null,null,null,null,null,null,null,null,null,null,{"$f":"ROUND(RAND()*(6-2)+2,0)","v":3}]
[null,null,"What is the acceptable range for the length of the nails.",null,null,null,null,null,null,null,null,null,null,null,null,null,null,null,null,null,null,null,null,null,null,null,null,null,null,null,null,null,null,null,null,null,null,{"$f":"AL5-AL6","v":67}]
[null,null,null,null,null,null,null,null,null,null,null,null,null,null,null,null,null,null,null,null,null,null,null,null,null,null,null,null,null,null,null,null,null,null,null,null,null,{"$f":"AL5+AL6","v":73}]
[null,null,"Mini. Limit = ",null,null,null,null,null,"mm",null,null,"Max. Limit =",null,null,null,null,null,"mm",null,null,null,null,null,null,null,null,null,null,null,null,null,null,null,null,null,null,null,{"$f":"CONCATENATE(\"(\",AL5, \" \",AM5,\" \",AL6,\")\")","v":"(70 ± 3)"}]
[]
[null,null,null,null,null,null,null,null,null,null,null,null,null,null,null,null,null,null,null,null,null,null,null,null,null,null,null,null,null,null,null,null,null,null,null,null,null,{"$f":"ROUND(RAND()*(80-60)+60,0)","v":75},"±"]
[null,{"$f":"\"Q2.   A supermarket will only accept apples that have a diameter between \"&AL13&\" and \"&AL14&\" mm.\"","v":"Q2.   A supermarket will only accept apples that have a diameter between 69 and 81 mm."},null,null,null,null,null,null,null,null,null,null,null,null,null,null,null,null,null,null,null,null,null,null,null,null,null,null,null,null,null,null,null,null,null,null,null,{"$f":"ROUND(RAND()*(6-2)+2,0)","v":6}]
[null,null,"Write the acceptable range in standard notation.",null,null,null,null,null,null,null,null,null,null,null,null,null,null,null,null,null,null,null,null,null,null,null,null,null,null,null,null,null,null,null,null,null,null,{"$f":"AL11-AL12","v":69}]
[null,null,null,null,null,null,null,null,null,null,null,null,null,null,null,null,null,null,null,null,null,null,null,null,null,null,null,null,null,null,null,null,null,null,null,null,null,{"$f":"AL11+AL12","v":81}]
[null,null,null,null,null,null,null,null,null,"(",null,"±",null,")","mm",null,null,null,null,null,null,null,null,null,null,null,null,null,null,null,null,null,null,null,null,null,null,"(",{"$f":"(AL14+AL13)/2","v":75},{"$f":"AM11","v":"±"},{"$f":"AL12","v":6},")"]
[]
[null,null,null,null,null,null,null,null,null,null,null,null,null,null,null,null,null,null,null,null,null,null,null,null,null,null,null,null,null,null,null,null,null,null,null,null,null,{"$f":"ROUND(RAND()*(190-50)+50,0)","v":145},"±"]
[null,{"$f":"\"Q3.   Bolts for an aeroplane need to be made very accurately. One such bolt needs to be \"&AL22&\"cm.\"","v":"Q3.   Bolts for an aeroplane need to be made very accurately. One such bolt needs to be (145 ± 0.3)cm."},null,null,null,null,null,null,null,null,null,null,null,null,null,null,null,null,null,null,null,null,null,null,null,null,null,null,null,null,null,null,null,null,null,null,null,{"$f":"ROUND(RAND()*(19-1)+1,0)*0.05","v":0.30000000000000004}]
[null,null,"Write the acceptable range in standard form.",null,null,null,null,null,null,null,null,null,null,null,null,null,null,null,null,null,null,null,null,null,null,null,null,null,null,null,null,null,null,null,null,null,null,{"$f":"AL17-AL18","v":144.69999999999999}]
[null,null,null,null,null,null,null,null,null,null,null,null,null,null,null,null,null,null,null,null,null,null,null,null,null,null,null,null,null,null,null,null,null,null,null,null,null,{"$f":"AL17+AL18","v":145.30000000000001}]
[null,null,"Mini. Limit = ",null,null,null,null,null,"mm",null,null,"Max. Limit =",null,null,null,null,null,"mm",null,null,null,null,null,null,null,null,null,null,null,null,null,null,null,null,null,null,null,"(",{"$f":"(AL20+AL19)/2","v":145},{"$f":"AM17","v":"±"},{"$f":"AL18","v":0.30000000000000004},")"]
[null,null,null,null,null,null,null,null,null,null,null,null,null,null,null,null,null,null,null,null,null,null,null,null,null,null,null,null,null,null,null,null,null,null,null,null,null,{"$f":"CONCATENATE(AL21,AM21,\" \",AN21,\" \",AO21,AP21)","v":"(145 ± 0.3)"}]
[null,null,null,null,null,null,null,null,null,null,null,null,null,null,null,null,null,null,null,null,null,null,null,null,null,null,null,null,null,null,null,null,null,null,null,null,null,{"$f":"ROUND(RAND()*(299-150)+150,0)","v":163},"±"]
[null,{"$f":"\"Q4.   A tin of beans to past quality control needs to have between \"&AL25&\" and \"&AL26&\" beans in a can.\"","v":"Q4.   A tin of beans to past quality control needs to have between 255 and 263 beans in a can."},null,null,null,null,null,null,null,null,null,null,null,null,null,null,null,null,null,null,null,null,null,null,null,null,null,null,null,null,null,null,null,null,null,null,null,{"$f":"ROUND(RAND()*(30-5)+5,0)","v":28}]
[null,null,"Write the acceptable range in standard notation.",null,null,null,null,null,null,null,null,null,null,null,null,null,null,null,null,null,null,null,null,null,null,null,null,null,null,null,null,null,null,null,null,null,null,{"$f":"AL23-AL24","v":255}]
[null,null,null,null,null,null,null,null,null,null,null,null,null,null,null,null,null,null,null,null,null,null,null,null,null,null,null,null,null,null,null,null,null,null,null,null,null,{"$f":"AL23+AL24","v":263}]
[null,null,null,null,null,null,null,null,null,"(",null,"±",null,")","beans",null,null,null,null,null,null,null,null,null,null,null,null,null,null,null,null,null,null,null,null,null,null,"(",{"$f":"(AL26+AL25)/2","v":259},{"$f":"AM23","v":"±"},{"$f":"AL24","v":4},")"]
[]
[null,null,null,null,null,null,null,null,null,null,null,null,null,null,null,null,null,null,null,null,null,null,null,null,null,null,null,null,null,null,null,null,null,null,null,null,null,{"$f":"ROUND(RAND()*(0.09-0.04)+0.04,2)","v":7.0000000000000007E-2},"±"]
[null,{"$f":"\"Q5.   The width of a human hair is between \"&AL31&\" and \"&AL32&\" mm.\"","v":"Q5.   The width of a human hair is between 0.065 and 0.075 mm."},null,null,null,null,null,null,null,null,null,null,null,null,null,null,null,null,null,null,null,null,null,null,null,null,null,null,null,null,null,null,null,null,null,null,null,{"$f":"ROUND(RAND()*(5-1)+1,0)*0.005","v":5.0000000000000001E-3}]
[null,null,"Write the acceptable range in standard notation.",null,null,null,null,null,null,null,null,null,null,null,null,null,null,null,null,null,null,null,null,null,null,null,null,null,null,null,null,null,null,null,null,null,null,{"$f":"AL29-AL30","v":6.5000000000000002E-2}]
[null,null,null,null,null,null,null,null,null,null,null,null,null,null,null,null,null,null,null,null,null,null,null,null,null,null,null,null,null,null,null,null,null,null,null,null,null,{"$f":"AL29+AL30","v":7.5000000000000011E-2}]
[null,null,null,null,null,null,null,null,null,"(",null,"±",null,")","mm",null,null,null,null,null,null,null,null,null,null,null,null,null,null,null,null,null,null,null,null,null,null,"(",{"$f":"(AL32+AL31)/2","v":7.0000000000000007E-2},{"$f":"AM29","v":"±"},{"$f":"AL30","v":5.0000000000000001E-3},")"]